fUSD/lending_fUSD_20240404
["ID","MTS","AMOUNT","RATE_DAILY","PERIOD"]
[321449494,1712196642932,-400.026094,0.0004829,30]
[321449496,1712196642942,-211.99904312,0.00048309,30]
[321449498,1712196642951,-154.06850799,0.00048317,30]
[321449500,1712196642960,-155.41052791,0.00048326,30]
[321449502,1712196642970,-238.86502259,0.00048365,30]
[321449504,1712196642979,-160.20412195,0.00048401,30]
[321449506,1712196642990,-150.0,0.0004845,2]
[321449508,1712196643000,-153.89032083,0.00048522,30]
[321449510,1712196643009,-604.22994504,0.00048523,30]
[321449512,1712196643018,-154.29714744,0.00048532,30]
[321449514,1712196643027,-155.01816655,0.00048563,30]
[321449516,1712196643037,-211.99904312,0.00048564,30]
[321449518,1712196643045,-211.99904312,0.0004858,30]
[321449520,1712196643055,-211.99904312,0.00048597,30]
[321449522,1712196643063,-1155.79,0.000486,7]
[321449524,1712196643072,-153.79214001,0.00048603,30]
[321449526,1712196643081,-176.66265931,0.00048606,30]
[321449528,1712196643091,-604.22994504,0.00048611,30]
[321449530,1712196643100,-197.97595336,0.00048624,30]
[321449531,1712196643109,-153.54975412,0.00048634,30]
[321449532,1712196643117,-510.18312938,0.00048647,30]
[321449533,1712196643126,-156.66,0.0004866,2]
[321449534,1712196643136,-518.71,0.0004866,2]
[321449535,1712196643145,-150.0,0.0004866,2]
[321449536,1712196643154,-150.0,0.0004866,2]
[321449537,1712196643162,-343.69,0.0004866,2]
[321449538,1712196643171,-211.99904312,0.00048682,30]
[321449539,1712196643180,-604.22994504,0.00048682,30]
[321449540,1712196643189,-510.18312938,0.00048683,30]
[321449541,1712196643197,-151.0,0.00048685,120]
[321449542,1712196643206,-160.88854191,0.00048697,2]
[321449543,1712196643215,-16773.18574315,0.000487,2]
[321449544,1712196643223,-1507.36009158,0.000487,30]
[321449545,1712196643233,-19896.398039,0.000487,2]
[321449546,1712196643243,-1335.0,0.000487,117]
[321449547,1712196643253,-1081.98729124,0.00048706,5]
[321449548,1712196643262,-153.89032083,0.00048717,30]
[321449549,1712196643271,-238.86502259,0.00048717,30]
[321449550,1712196643280,-604.22994504,0.00048723,30]
[321449551,1712196643289,-500.0,0.00048728,30]
[321449552,1712196643298,-388.42808272,0.00048728,30]
[321449553,1712196643308,-166.99346795,0.00048739,30]
[321449554,1712196643317,-388.42808272,0.00048768,30]
[321449555,1712196643326,-211.99904312,0.00048781,30]
[321449556,1712196643335,-510.18312938,0.00048783,30]
[321449557,1712196643344,-238.86502259,0.00048796,30]
[321449558,1712196643353,-1060.7,0.000488,7]
[321449559,1712196643362,-1103.62,0.000488,7]
[321449560,1712196643371,-157.64312318,0.00048846,30]
[321449561,1712196643381,-400.026094,0.00048871,30]
[321449562,1712196643391,-197.97595336,0.00048872,30]
[321449563,1712196643400,-156.25,0.00048894,2]
[321449564,1712196643409,-156.17754036,0.00048894,30]
[321449565,1712196643418,-160.20412195,0.00048895,30]
[321449566,1712196643427,-604.22994504,0.00048916,30]
[321449567,1712196643436,-150.0,0.00048919,120]
[321449568,1712196643445,-197.97595336,0.00048929,30]
[321449569,1712196643454,-153.89032083,0.00048956,30]
[321449570,1712196643464,-998.45,0.00048986,15]
[321449571,1712196643473,-388.42808272,0.00048988,30]
[321449572,1712196643483,-510.18312938,0.00048996,30]
[321449573,1712196643492,-166.57077036,0.00049,30]
[321449574,1712196643500,-299.00338467,0.00049,30]
[321449575,1712196643510,-300.0,0.00049,2]
[321449576,1712196643519,-305318.53158646,0.00049,30]
[321449577,1712196643528,-1211.0,0.00049,4]
[321449578,1712196643537,-600.0,0.00049,50]
[321449579,1712196643546,-800.0,0.00049002,30]
[321449580,1712196643556,-1000.0,0.00049002,30]
[321449581,1712196643565,-500.0,0.00049002,30]
[321449582,1712196643575,-500.0,0.00049002,30]
[321449583,1712196643584,-153.89032083,0.00049008,30]
[321449584,1712196643593,-604.22994504,0.0004904,30]
[321449585,1712196643602,-153.79214001,0.00049044,30]
[321449586,1712196643611,-155.41052791,0.00049047,30]
[321449587,1712196643620,-510.18312938,0.00049072,30]
[321449588,1712196643629,-1491.93307504,0.000491,14]
[321449589,1712196643638,-154.06850799,0.0004911,30]
[321449590,1712196643648,-292.23916669,0.00049113,30]
[321449591,1712196643657,-238.86502259,0.00049119,30]
[321449592,1712196643666,-292.23916669,0.00049124,30]
[321449593,1712196643675,-292.23916669,0.0004913,30]
[321449594,1712196643684,-150.0,0.00049136,120]
[321449595,1712196643694,-292.23916669,0.00049158,30]
[321449596,1712196643703,-211.99904312,0.00049174,30]
[321449597,1712196643712,-604.22994504,0.00049186,30]
[321449598,1712196643725,-154.78369153,0.00049194,30]
[321449599,1712196643735,-388.42808272,0.000492,30]
[321449600,1712196643745,-238.86502259,0.00049207,30]
[321449601,1712196643754,-800.0,0.00049276,30]
[321449602,1712196643764,-1000.0,0.00049276,30]
[321449603,1712196643774,-500.0,0.00049276,30]
[321449604,1712196643784,-197.97595336,0.0004929,30]
[321449605,1712196643794,-292.23916669,0.00049305,30]
[321449606,1712196643804,-2129.0,0.00049315,60]
[321449607,1712196643816,-1000.0,0.00049315,7]
[321449608,1712196643826,-1000.0,0.00049315,7]
[321449609,1712196643836,-1000.0,0.00049315,7]
[321449610,1712196643846,-1000.0,0.00049315,7]
[321449611,1712196643856,-1000.0,0.00049315,7]
[321449612,1712196643865,-1000.0,0.00049315,7]
[321449613,1712196643874,-1000.0,0.00049315,7]
[321449614,1712196643884,-1000.0,0.00049315,7]
[321449615,1712196643893,-1000.0,0.00049315,7]
[321449616,1712196643903,-1000.0,0.00049315,7]
[321449617,1712196643913,-1000.0,0.00049315,7]
[321449618,1712196643922,-1000.0,0.00049315,7]
[321449619,1712196643932,-1000.0,0.00049315,7]
[321449620,1712196643941,-1000.0,0.00049315,7]
[321449621,1712196643950,-1000.0,0.00049315,7]
[321449622,1712196643960,-1000.0,0.00049315,7]
[321449623,1712196643969,-1000.0,0.00049315,7]
[321449624,1712196643978,-1000.0,0.00049315,7]
[321449625,1712196643987,-1000.0,0.00049315,7]
[321449626,1712196643998,-1000.0,0.00049315,7]
[321449627,1712196644006,-1000.0,0.00049315,7]
[321449628,1712196644015,-1000.0,0.00049315,7]
[321449629,1712196644023,-1000.0,0.00049315,7]
[321449630,1712196644033,-1000.0,0.00049315,7]
[321449631,1712196644042,-1000.0,0.00049315,7]
[321449632,1712196644051,-1000.0,0.00049315,7]
[321449633,1712196644060,-1000.0,0.00049315,7]
[321449634,1712196644069,-1000.0,0.00049315,7]
[321449635,1712196644078,-1000.0,0.00049315,7]
[321449636,1712196644087,-1000.0,0.00049315,7]
[321449637,1712196644096,-1000.0,0.00049315,7]
[321449638,1712196644106,-1000.0,0.00049315,7]
[321449639,1712196644115,-1000.0,0.00049315,7]
[321449640,1712196644123,-1000.0,0.00049315,7]
[321449641,1712196644133,-1000.0,0.00049315,7]
[321449642,1712196644141,-1000.0,0.00049315,7]
[321449643,1712196644150,-1000.0,0.00049315,7]
[321449644,1712196644160,-1000.0,0.00049315,7]
[321449645,1712196644169,-1000.0,0.00049315,7]
[321449646,1712196644178,-1000.0,0.00049315,7]
[321449647,1712196644187,-1000.0,0.00049315,7]
[321449648,1712196644196,-1000.0,0.00049315,7]
[321449649,1712196644205,-1000.0,0.00049315,7]
[321449650,1712196644214,-1000.0,0.00049315,7]
[321449651,1712196644223,-1000.0,0.00049315,7]
[321449652,1712196644232,-1000.0,0.00049315,7]
[321449653,1712196644241,-1000.0,0.00049315,7]
[321449654,1712196644250,-1000.0,0.00049315,7]
[321449655,1712196644259,-1000.0,0.00049315,7]
[321449656,1712196644268,-1000.0,0.00049315,7]
[321449657,1712196644277,-1000.0,0.00049315,7]
[321449658,1712196644286,-1000.0,0.00049315,7]
[321449659,1712196644295,-1000.0,0.00049315,7]
[321449660,1712196644304,-1000.0,0.00049315,7]
[321449661,1712196644314,-1000.0,0.00049315,7]
[321449662,1712196644323,-1000.0,0.00049315,7]
[321449663,1712196644334,-1000.0,0.00049315,7]
[321449664,1712196644343,-1000.0,0.00049315,7]
[321449665,1712196644353,-1000.0,0.00049315,7]
[321449666,1712196644362,-1000.0,0.00049315,7]
[321449667,1712196644371,-1000.0,0.00049315,7]
[321449668,1712196644380,-1000.0,0.00049315,7]
[321449669,1712196644389,-1000.0,0.00049315,7]
[321449670,1712196644399,-1000.0,0.00049315,7]
[321449671,1712196644408,-1000.0,0.00049315,7]
[321449672,1712196644417,-1000.0,0.00049315,7]
[321449673,1712196644427,-1000.0,0.00049315,7]
[321449674,1712196644436,-1000.0,0.00049315,7]
[321449675,1712196644447,-1000.0,0.00049315,7]
[321449676,1712196644459,-1000.0,0.00049315,7]
[321449677,1712196644468,-1000.0,0.00049315,7]
[321449678,1712196644477,-1000.0,0.00049315,7]
[321449679,1712196644486,-1000.0,0.00049315,7]
[321449680,1712196644496,-1000.0,0.00049315,7]
[321449681,1712196644506,-1000.0,0.00049315,7]
[321449682,1712196644516,-1000.0,0.00049315,7]
[321449683,1712196644526,-1000.0,0.00049315,7]
[321449684,1712196644536,-1000.0,0.00049315,7]
[321449685,1712196644546,-1000.0,0.00049315,7]
[321449686,1712196644555,-1000.0,0.00049315,7]
[321449687,1712196644565,-1000.0,0.00049315,7]
[321449688,1712196644575,-1000.0,0.00049315,7]
[321449689,1712196644584,-1000.0,0.00049315,7]
[321449690,1712196644593,-1000.0,0.00049315,7]
[321449691,1712196644603,-1000.0,0.00049315,7]
[321449692,1712196644612,-1000.0,0.00049315,7]
[321449693,1712196644622,-1000.0,0.00049315,7]
[321449694,1712196644631,-1000.0,0.00049315,7]
[321449695,1712196644640,-1000.0,0.00049315,7]
[321449696,1712196644649,-1000.0,0.00049315,7]
[321449697,1712196644659,-1000.0,0.00049315,7]
[321449698,1712196644672,-1000.0,0.00049315,7]
[321449699,1712196644681,-1000.0,0.00049315,7]
[321449700,1712196644691,-1000.0,0.00049315,7]
[321449701,1712196644700,-1000.0,0.00049315,7]
[321449702,1712196644709,-1000.0,0.00049315,7]
[321449703,1712196644719,-1000.0,0.00049315,7]
[321449704,1712196644730,-1000.0,0.00049315,7]
[321449705,1712196644740,-1000.0,0.00049315,7]
[321449706,1712196644750,-1000.0,0.00049315,7]
[321449707,1712196644759,-150.0,0.00049315,2]
[321449708,1712196644769,-155.41052791,0.00049317,30]
[321449709,1712196644778,-238.86502259,0.0004933,30]
[321449710,1712196644789,-1002.08,0.0004934,2]
[321449711,1712196644798,-197.97595336,0.00049354,30]
[321449712,1712196644810,-151.0,0.0004937,120]
[321449713,1712196644820,-153.89032083,0.00049417,30]
[321449714,1712196644830,-211.99904312,0.00049431,30]
[321449715,1712196644839,-155.41052791,0.00049443,30]
[321449716,1712196644849,-388.42808272,0.00049453,30]
[321449717,1712196644859,-292.23916669,0.00049453,30]
[321449718,1712196644869,-153.89032083,0.00049457,30]
[321449719,1712196644879,-1481.08,0.00049472,120]
[321449720,1712196644888,-197.97595336,0.00049476,30]
[321449721,1712196644898,-211.99904312,0.00049489,30]
[321449722,1712196644908,-228745.81125356,0.0004949,15]
[321449723,1712196644917,-161.040411,0.00049494,99]
[321449724,1712196644927,-197.97595336,0.00049525,30]
[321449725,1712196644937,-3604.0,0.00049526,10]
[321449726,1712196644946,-154.06850799,0.0004954,30]
[321449727,1712196644955,-500.0,0.0004955,90]
[321449728,1712196644965,-800.0,0.0004955,90]
[321449729,1712196644974,-1000.0,0.0004955,90]
[321449730,1712196644983,-500.0,0.0004955,90]
[321449731,1712196644994,-889.8,0.00049554,2]
[321449732,1712196645004,-211.99904312,0.00049584,30]
[321449733,1712196645013,-154.09026502,0.0004959,120]
[321449734,1712196645023,-154.09026502,0.0004959,120]
[321449735,1712196645145,-154.09026502,0.0004959,120]
[321449736,1712196645157,-154.09026502,0.0004959,120]
[321449737,1712196645167,-154.09026502,0.0004959,120]
[321449738,1712196645176,-154.09026502,0.0004959,120]
[321449739,1712196645186,-154.09026502,0.0004959,120]
[321449740,1712196645195,-154.09026502,0.0004959,120]
[321449741,1712196645204,-154.09026502,0.0004959,120]
[321449742,1712196645214,-154.09026502,0.0004959,120]
[321449743,1712196645222,-154.09026502,0.0004959,120]
[321449744,1712196645232,-154.09026502,0.0004959,120]
[321449745,1712196645242,-154.59,0.0004959,120]
[321449747,1712196645251,-158.91402984,0.0004959,120]
[321449748,1712196645261,-158.91402984,0.0004959,120]
[321449749,1712196645270,-158.91402984,0.0004959,120]
[321449750,1712196645280,-158.91402984,0.0004959,120]
[321449751,1712196645290,-158.91402984,0.0004959,120]
[321449752,1712196645300,-158.91402984,0.0004959,120]
[321449753,1712196645310,-158.91402984,0.0004959,120]
[321449755,1712196645319,-158.91402984,0.0004959,120]
[321449756,1712196645329,-158.91402984,0.0004959,120]
[321449757,1712196645338,-158.91402984,0.0004959,120]
[321449758,1712196645347,-158.91402984,0.0004959,120]
[321449759,1712196645356,-158.91402984,0.0004959,120]
[321449760,1712196645366,-158.91402984,0.0004959,120]
[321449761,1712196645376,-158.91402984,0.0004959,120]
[321449762,1712196645385,-158.91402984,0.0004959,120]
[321449763,1712196645395,-159.41,0.0004959,120]
[321449764,1712196645404,-510.18312938,0.00049597,30]
[321449765,1712196645413,-3000.0,0.000496,2]
[321449766,1712196645424,-2651.27976135,0.000496,2]
[321449767,1712196645433,-152.11,0.000496,6]
[321449768,1712196645443,-152.11,0.000496,6]
[321449769,1712196645453,-152.11,0.000496,6]
[321449770,1712196645462,-152.11,0.000496,6]
[321449771,1712196645472,-152.11,0.000496,6]
[321449772,1712196645482,-152.11,0.000496,6]
[321449773,1712196645492,-152.11,0.000496,6]
[321449774,1712196645502,-152.11,0.000496,6]
[321449775,1712196645512,-152.11,0.000496,6]
[321449776,1712196645522,-152.11,0.000496,6]
[321449777,1712196645532,-152.11,0.000496,6]
[321449778,1712196645541,-152.11,0.000496,6]
[321449779,1712196645551,-7318.39,0.000496,6]
[321449780,1712196645560,-7318.39,0.000496,6]
[321449781,1712196645569,-7318.39,0.000496,6]
[321449782,1712196645579,-7318.39,0.000496,6]
[321449783,1712196645588,-7318.39,0.000496,6]
[321449784,1712196645597,-7318.39,0.000496,6]
[321449785,1712196645607,-7318.39,0.000496,6]
[321449786,1712196645617,-7318.39,0.000496,6]
[321449787,1712196645626,-7318.39,0.000496,6]
[321449788,1712196645636,-7318.39,0.000496,6]
[321449789,1712196645646,-7318.39,0.000496,6]
[321449790,1712196645655,-7318.39,0.000496,6]
[321449791,1712196645664,-7318.39,0.000496,6]
[321449792,1712196645674,-7318.39,0.000496,6]
[321449793,1712196645684,-7318.39,0.000496,6]
[321449794,1712196645693,-7318.39,0.000496,6]
[321449795,1712196645703,-7318.39,0.000496,6]
[321449796,1712196645712,-7318.39,0.000496,6]
[321449797,1712196645722,-7318.39,0.000496,6]
[321449798,1712196645733,-7318.39,0.000496,6]
[321449799,1712196645745,-152.0,0.00049655,6]
[321449800,1712196645754,-292.23916669,0.00049677,30]
[321449801,1712196645764,-197.97595336,0.00049704,30]
[321449802,1712196645774,-160.20412195,0.00049711,30]
[321449803,1712196645783,-238.86502259,0.0004973,30]
[321449804,1712196645793,-197.97595336,0.00049744,30]
[321449805,1712196645803,-163.87142962,0.00049779,30]
[321449806,1712196645814,-1395.250828,0.0004978,2]
[321449807,1712196645825,-157.040411,0.00049794,100]
[321449808,1712196645834,-153.54975412,0.00049795,30]
[321449809,1712196645844,-1366.99263313,0.000498,60]
[321449810,1712196645853,-163.4074533,0.00049809,30]
[321449811,1712196645864,-505.05628314,0.00049824,90]
[321449812,1712196645875,-156.17754036,0.00049838,30]
[321449813,1712196645885,-154.06850799,0.00049844,30]
[321449814,1712196645895,-211.99904312,0.00049864,30]
[321449815,1712196645904,-153.89032083,0.00049874,30]
[321449816,1712196645914,-166.99346797,0.00049877,30]
[321449817,1712196645924,-238.86502259,0.00049895,30]
[321449818,1712196645934,-246.77372123,0.000499,84]
[321449819,1712196645944,-246.77372119,0.000499,84]
[321449820,1712196645953,-246.77372119,0.000499,84]
[321449821,1712196645963,-246.77372119,0.000499,84]
[321449822,1712196645972,-246.77372119,0.000499,84]
[321449823,1712196645981,-246.77372119,0.000499,84]
[321449824,1712196645991,-246.77372119,0.000499,84]
[321449825,1712196646001,-246.77372119,0.000499,84]
[321449826,1712196646011,-246.77372119,0.000499,84]
[321449827,1712196646021,-246.77372119,0.000499,84]
[321449828,1712196646031,-153.89032083,0.00049917,30]
[321449829,1712196646041,-211.99904312,0.00049926,30]
[321449830,1712196646051,-238.86502259,0.00049933,30]
[321449831,1712196646061,-157.64312318,0.00049947,30]
[321449832,1712196646070,-292.23916669,0.00049947,30]
[321449833,1712196646080,-482.66562573,0.00049984,2]
[321449834,1712196646090,-154.06850799,0.00049985,30]
[321449835,1712196646099,-6747289.80358719,0.00049987,4]
[321449836,1712196646109,-615.25742177,0.00049998,120]
[321449837,1712196646119,-1006.1636108,0.0005,2]
[321449838,1712196646129,-27100.9070143,0.0005,4]
[321449839,1712196646139,-51022.63529153,0.0005,120]
[321449840,1712196646149,-207.57257975,0.0005,120]
[321449841,1712196646159,-1121.26292233,0.0005,2]
[321449842,1712196646168,-14318.0095112,0.0005,120]
[321449843,1712196646178,-386.57193984,0.0005,30]
[321449844,1712196646188,-151.0,0.0005,120]
[321449845,1712196646198,-817.3993073,0.0005,2]
[321449846,1712196646207,-1600.0,0.0005,21]
[321449847,1712196646217,-156.2876643,0.0005,120]
[321449848,1712196646226,-3887.01570934,0.0005,2]
[321449849,1712196646236,-200.0,0.0005,2]
[321449850,1712196646246,-3070.58058319,0.0005,120]
[321449851,1712196646256,-4168.358088,0.0005,30]
[321449852,1712196646265,-429.8125433,0.0005,28]
[321449853,1712196646275,-155.0,0.0005,2]
[321449854,1712196646285,-511.89897904,0.0005,90]
[321449855,1712196646294,-42219.06122244,0.0005,12]
[321449856,1712196646303,-42219.06122244,0.0005,12]
[321449857,1712196646313,-42219.06122244,0.0005,12]
[321449858,1712196646322,-42219.06122244,0.0005,12]
[321449859,1712196646332,-42219.06122244,0.0005,12]
[321449860,1712196646341,-42219.06122244,0.0005,12]
[321449861,1712196646351,-42219.06122244,0.0005,12]
[321449862,1712196646361,-42219.06122244,0.0005,12]
[321449863,1712196646370,-42219.06122244,0.0005,12]
[321449864,1712196646380,-42219.06022244,0.0005,12]
[321449865,1712196646390,-1034.70883663,0.0005,12]
[321449866,1712196646400,-4452.0,0.0005,15]
[321449867,1712196646410,-1060.7,0.0005,7]
[321449868,1712196646419,-1103.62,0.0005,7]
[321449869,1712196646429,-1155.79,0.0005,7]
[321449870,1712196646439,-600.0,0.0005,51]
[321449871,1712196646450,-548.60062448,0.0005,120]
[321449872,1712196646460,-500.0,0.0005,45]
[321449873,1712196646469,-604.22994504,0.00050047,60]
[321449874,1712196646479,-604.22994504,0.00050053,60]
[321449875,1712196646489,-151.0,0.00050055,120]
[321449876,1712196646500,-160.20412195,0.00050084,60]
[321449877,1712196646509,-500.0,0.00050098,90]
[321449878,1712196646519,-800.0,0.00050098,90]
[321449879,1712196646528,-1000.0,0.00050098,90]
[321449880,1712196646538,-500.0,0.00050098,90]
[321449881,1712196646547,-155.41052791,0.000501,60]
[321449882,1712196646557,-238.86502259,0.00050129,60]
[321449883,1712196646566,-2129.0,0.00050136,64]
[321449884,1712196646576,-155.41052791,0.00050168,60]
[321449885,1712196646585,-157.64312318,0.00050176,60]
[321449886,1712196646594,-161.040411,0.00050194,112]
[321449887,1712196646604,-156.17754036,0.00050236,60]
[321449888,1712196646613,-230.62149275,0.00050264,14]
[321449889,1712196646622,-230.62149275,0.00050264,14]
[321449890,1712196646631,-230.62149275,0.00050264,14]
[321449891,1712196646641,-230.62149275,0.00050264,14]
[321449892,1712196646651,-230.62149275,0.00050264,14]
[321449893,1712196646660,-230.62149275,0.00050264,14]
[321449894,1712196646669,-230.62149275,0.00050264,14]
[321449895,1712196646679,-230.62149275,0.00050264,14]
[321449896,1712196646690,-230.62149275,0.00050264,14]
[321449897,1712196646700,-230.62149275,0.00050264,14]
[321449898,1712196646711,-230.62149275,0.00050264,14]
[321449899,1712196646720,-230.62149275,0.00050264,14]
[321449900,1712196646731,-230.62149275,0.00050264,14]
[321449901,1712196646743,-230.62149275,0.00050264,14]
[321449902,1712196646752,-230.62149275,0.00050264,14]
[321449903,1712196646761,-230.62149275,0.00050264,14]
[321449904,1712196646770,-230.62149275,0.00050264,14]
[321449905,1712196646780,-230.62149275,0.00050264,14]
[321449906,1712196646790,-230.62149275,0.00050264,14]
[321449907,1712196646800,-230.62149275,0.00050264,14]
[321449908,1712196646810,-230.62149275,0.00050264,14]
[321449909,1712196646821,-230.62149275,0.00050264,14]
[321449910,1712196646831,-230.62149275,0.00050264,14]
[321449911,1712196646842,-230.62149275,0.00050264,14]
[321449912,1712196646852,-230.62149275,0.00050264,14]
[321449913,1712196646862,-230.62149275,0.00050264,14]
[321449914,1712196646872,-292.23916669,0.00050266,60]
[321449915,1712196646882,-155.41052791,0.00050279,60]
[321449916,1712196646891,-157.64312318,0.00050309,60]
[321449917,1712196646901,-604.22994504,0.0005033,60]
[321449918,1712196646911,-197.97595336,0.00050342,60]
[321449919,1712196646922,-510.18312938,0.00050355,60]
[321449920,1712196646931,-800.0,0.00050372,90]
[321449921,1712196646940,-1000.0,0.00050372,90]
[321449922,1712196646949,-153.54975412,0.00050385,60]
[321449923,1712196646958,-197.97595336,0.00050399,60]
[321449924,1712196646967,-604.22994504,0.0005041,60]
[321449925,1712196646976,-153.89032083,0.00050414,60]
[321449926,1712196646985,-388.42808272,0.00050415,60]
[321449927,1712196646995,-400.70968906,0.00050425,120]
[321449928,1712196647005,-508.5998955,0.00050425,120]
[321449929,1712196647014,-211.99904312,0.00050438,60]
[321449930,1712196647023,-156.17754036,0.00050444,60]
[321449931,1712196647032,-152.36417667,0.00050449,60]
[321449932,1712196647041,-151.29625457,0.00050463,60]
[321449933,1712196647051,-153.54975412,0.00050474,60]
[321449934,1712196647062,-197.97595336,0.0005048,60]
[321449935,1712196647071,-157.040411,0.00050494,112]
[321449936,1712196647080,-197.97595336,0.00050498,60]
[321449937,1712196647089,-155.01816656,0.00050531,60]
[321449938,1712196647098,-388.42808272,0.00050537,60]
[321449939,1712196647107,-292.23916669,0.00050584,60]
[321449940,1712196647118,-197.97595336,0.00050587,60]
[321449941,1712196647128,-388.42808272,0.0005059,60]
[321449942,1712196647138,-154.06850799,0.00050597,60]
[321449943,1712196647148,-500.0,0.00050646,90]
[321449944,1712196647158,-800.0,0.00050646,90]
[321449945,1712196647167,-1000.0,0.00050646,90]
[321449946,1712196647176,-500.0,0.00050646,90]
[321449947,1712196647186,-160.28413083,0.00050648,60]
[321449948,1712196647195,-388.42808272,0.00050668,60]
[321449949,1712196647204,-197.97595336,0.00050672,60]
[321449950,1712196647213,-388.42808272,0.00050695,60]
[321449951,1712196647222,-238.86502259,0.00050698,60]
[321449952,1712196647232,-238.86502259,0.00050736,60]
[321449953,1712196647241,-151.0,0.0005074,120]
[321449954,1712196647251,-5824.68208529,0.0005074,2]
[321449955,1712196647260,-161.040411,0.00050794,112]
[321449956,1712196647269,-292.23916669,0.00050794,60]
[321449957,1712196647278,-160.20412195,0.0005082,60]
[321449958,1712196647287,-604.22994504,0.0005083,60]
[321449959,1712196647592,-168.30338035,0.00050838,60]
[321449960,1712196647613,-153.89032083,0.00050841,60]
[321449961,1712196647624,-153.89032083,0.00050842,60]
[321449962,1712196647634,-211.99904312,0.00050843,60]
[321449963,1712196647644,-155.54109467,0.00050852,60]
[321449964,1712196647654,-388.42808272,0.00050859,60]
[321449965,1712196647663,-400.70968906,0.00050866,120]
[321449966,1712196647673,-508.5998955,0.00050866,120]
[321449967,1712196647682,-1002.08,0.0005088,2]
[321449968,1712196647691,-510.18312938,0.00050889,60]
[321449969,1712196647700,-11383.22362893,0.000509,30]
[321449970,1712196647709,-166.86503383,0.000509,120]
[321449971,1712196647718,-166.86503383,0.000509,120]
[321449972,1712196647728,-211.99904312,0.00050902,60]
[321449973,1712196647738,-155.41052791,0.00050928,60]
[321449974,1712196647748,-155.41052791,0.00050951,60]
[321449975,1712196647757,-2129.0,0.00050958,68]
[321449976,1712196647767,-502.80356341,0.0005097,7]
[321449977,1712196647776,-155.41052791,0.00050984,60]
[321449978,1712196647785,-292.23916669,0.00050991,60]
[321449979,1712196647795,-46893.25747965,0.00051,2]
[321449980,1712196647804,-600.0,0.00051,52]
[321449981,1712196647814,-950.0,0.00051,120]
[321449982,1712196647824,-163.87142962,0.0005102,60]
[321449983,1712196647834,-510.18312938,0.00051064,60]
[321449984,1712196647844,-22530.6123081,0.000511,7]
[321449985,1712196647853,-150.0,0.000511,10]
[321449986,1712196647862,-176.34670904,0.00051102,60]
[321449987,1712196647872,-160.20412195,0.00051115,60]
[321449988,1712196647882,-510.18312938,0.00051126,60]
[321449989,1712196647892,-510.18312938,0.00051151,60]
[321449990,1712196647902,-238.86502259,0.00051156,60]
[321449991,1712196647911,-153.89032083,0.00051162,60]
[321449992,1712196647920,-198.6880857,0.00051168,60]
[321449993,1712196647930,-156.17754036,0.00051177,60]
[321449994,1712196647939,-500.0,0.00051194,90]
[321449995,1712196647949,-1000.0,0.00051194,90]
[321449996,1712196647958,-800.0,0.00051194,90]
[321449997,1712196647968,-515.82423311,0.00051194,90]
[321449998,1712196647982,-157.040411,0.00051194,113]
[321449999,1712196647992,-510.18312938,0.00051206,60]
[321450000,1712196648002,-604.22994504,0.0005122,60]
[321450001,1712196648012,-160.20412195,0.00051253,60]
[321450002,1712196648022,-510.18312938,0.00051254,60]
[321450003,1712196648031,-153.89032083,0.00051262,60]
[321450004,1712196648041,-211.99904312,0.00051288,60]
[321450005,1712196648050,-153.89032083,0.00051294,60]
[321450006,1712196648060,-388.42808272,0.00051302,60]
[321450007,1712196648070,-400.70968906,0.00051307,120]
[321450008,1712196648079,-508.5998955,0.00051307,120]
[321450009,1712196648089,-153.89032083,0.00051311,60]
[321450010,1712196648098,-238.86502259,0.00051321,60]
[321450011,1712196648108,-157.64312318,0.00051334,60]
[321450012,1712196648118,-154.06850799,0.00051339,60]
[321450013,1712196648127,-153.89032083,0.00051355,60]